Cogmind - Beta 15 @@@ ROGUE MODE // 2025.08.17 @ 17:03:26 Player: MiiaBlossom Result: Destroyed by G-47 Trooper with Particle Gun Performance ------------- Evolutions (0) 0 Regions Visited (2) 400 Robots Destroyed (36) 180 Value Destroyed (724) 724 Prototype IDs (0) 0 Alien Tech Used (0) 0 Bonus (0) 0 TOTAL SCORE: 1304 Bonus ------- None Cogmind --------- Core Integrity 0/250 Matter 300/300 Energy 249/250 System Corruption 0% Temperature Cool (49) Movement Walking (120) Location -10/Mines Parts ------- > --- POWER (1) -------- Ion Engine > --- PROPULSION (2) --- Aluminum Leg > --- UTILITY (2) ------ Heat Sink Signal Interpreter > --- WEAPON (2) ------- Medium Laser > --- INVENTORY (5) ---- Improved Terrain Scanner Light Assault Rifle Light Assault Rifle Peak State ------------ > --- POWER ------------ Light Ion Engine > --- PROPULSION ------- Aluminum Leg Aluminum Leg > --- UTILITY ---------- Small Matter Pod Improved Terrain Scanner > --- WEAPON ----------- Medium Laser Light Assault Rifle > --- INVENTORY -------- Aluminum Leg Aluminum Leg Wheel Small Laser [Rating: 9] Favorites ----------- Power Ion Engine Engine Ion Engine Propulsion Aluminum Leg Leg Aluminum Leg Utility Improved Terrain Scanner Device Improved Terrain Scanner Storage Small Matter Pod Processor Signal Interpreter Weapon Light Assault Rifle Energy Gun Medium Laser Ballistic Gun Light Assault Rifle Launcher Grenade Launcher Build | -11 -10 -10 ------- Run | Yrd Mat Min Slots Evolved . | . . . Power . | . . . Propulsion . | . . . Utility . | . . . Weapon . | . . . Parts Attached 20 | 10 8 2 Power 5 | 2 2 1 Engine 5 | 2 2 1 Core . | . . . Reactor . | . . . Propulsion 4 | 3 1 . Treads . | . . . Leg 4 | 3 1 . Wheel . | . . . Hover . | . . . Flight . | . . . Utility 5 | 3 2 . Device 3 | 2 1 . Storage 1 | 1 . . Processor 1 | . 1 . Hackware . | . . . Protection . | . . . Artifact . | . . . Weapon 6 | 2 3 1 Energy Gun 2 | 1 . 1 Energy Cannon . | . . . Ballistic Gun 2 | 1 1 . Ballistic Cannon . | . . . Launcher 2 | . 2 . Special Weapon . | . . . Impact Weapon . | . . . Slashing Weapon . | . . . Piercing Weapon . | . . . Special Melee Weapon . | . . . Unidentified Prototypes . | . . . Parts Lost 7 | . 2 5 Power 1 | . . 1 Propulsion 3 | . 1 2 Utility 1 | . 1 . Weapon 2 | . . 2 Highest Loss Streak 2 | . 1 2 To Critical Strikes . | . . . Average Backups 4 | 3 4 4 Power . | . . . Propulsion 1 | 2 1 . Utility . | . . 1 Weapon 1 | . 1 2 Tool/Special . | . . . Unused Backups 7 | 4 2 1 Power . | . . . Propulsion 4 | 4 . . Utility 1 | . 1 . Weapon 2 | . 1 1 Tool/Special . | . . . Average Slot Usage (%) 95 | . 96 92 Engine 13 | . 14 11 Leg 27 | . 27 25 Device 16 | . 17 14 Storage 3 | . 4 . Processor 5 | . 3 14 Energy Gun 3 | . . 18 Ballistic Gun 13 | . 14 6 Launcher 10 | . 12 . Peak Build Rating 9 | 9 9 9 Average Rating 8 | 6 8 7 On Entrance 6 | . 9 9 Naked Turns . | . . . Heaviest Build 12 | 8 12 10 Greatest Support 20 | 20 20 20 Greatest Overweight (x) . | . . . Average Overweight (x) . | . . . Largest Inventory Capacity 5 | 5 5 5 Average Capacity 5 | 5 5 5 Most Carried 5 | 5 5 5 Average Carried 4 | 3 4 4 Final Capacity 5 | 5 5 5 Final Carried 5 | 5 5 3 Class Distribution -------------------- 59% | Mutant 40% | Scavenger-Mutant Dominant Class ---------------- Mutant | -10/Materials Mutant | -10/Mines Resources | -11 -10 -10 ----------- Run | Yrd Mat Min Matter Collected 816 | 340 348 128 Remotely . | . . . Salvage Created 737 | 116 408 213 Parts 67 | 17 37 13 Haulers Intercepted . | . . . Recyclers Shooed 3 | . 3 . Parts Field Recycled . | . . . Retrieved Matter . | . . . Parts Self-Destructed . | . . . Prevented . | . . . Kills | -11 -10 -10 ------- Run | Yrd Mat Min Combat Hostiles Destroyed 17 | 1 11 5 Guns 8 | 1 3 4 AOE 9 | . 8 1 Classes Destroyed 8 | 3 5 . Worker 5 | 1 4 . Builder 3 | . 1 2 Tunneler 5 | 4 1 . Recycler 2 | . 1 1 Operator 1 | . 1 . Watcher 3 | . 3 . Swarmer 6 | . 3 3 Grunt 11 | 1 8 2 Best Kill Streak 10 | 2 10 2 Combat Bots Only 4 | 1 4 2 Max Kills in Single Turn 2 | 1 2 1 Gunslinging . | . . . Exploded 2 | . 2 1 Melee . | . . . Uniques/NPCs Destroyed . | . . . Combat | -11 -10 -10 -------- Run | Yrd Mat Min Hostile Shots Fired 110 | 8 33 69 Missed 29 | 4 10 15 Hits 81 | 4 23 54 Projectile 81 | 4 23 54 Critical Strikes 2 | . . 2 Damage Taken 1204 | 42 574 588 Core 263 | . 100 163 Absorbed by Shields . | . . . Regen/Repaired (Parts) 39 | . 39 . Core Remaining (%) 100 | 100 . . Volleys Fired 132 | 20 52 60 Largest 2 | 2 2 2 Hottest 100 | 70 70 100 Shots Fired 221 | 26 99 96 Gun 194 | 26 74 94 Cannon . | . . . Launcher 27 | . 25 2 Special . | . . . Kinetic 109 | 6 71 32 Thermal 85 | 20 3 62 Explosive 27 | . 25 2 Electromagnetic . | . . . Robot Hit Streak 14 | 5 14 6 Robot Miss Streak 6 | 3 6 3 Penetration Max . | . . . Secondary Targets 1 | . . 1 Max Gunslinging Chain 1 | . . 1 Shots Hit Robots 99 | 15 41 43 Core Hits 58 | 7 36 15 Critical Kills . | . . . Critical Parts Destroyed . | . . . Critical Strikes 7 | 2 . 5 Burn 7 | 2 . 5 Melee Attacks . | . . . Impact . | . . . Slashing . | . . . Piercing . | . . . Sneak Attacks . | . . . Combat Hostiles . | . . . Follow-up Attacks . | . . . Damage Inflicted 2228 | 185 1468 575 Guns 1007 | 185 318 504 Cannons . | . . . Explosions 1219 | . 1148 71 Melee . | . . . Ramming 2 | . 2 . Kinetic 380 | 22 318 40 Thermal 627 | 163 . 464 Explosive 1219 | . 1148 71 Electromagnetic . | . . . Impact . | . . . Slashing . | . . . Piercing . | . . . Highest Corruption . | . . . Average Corruption . | . . . Corruption Purged . | . . . Corruption Blocked . | . . . Overload Shots . | . . . Overflow Damage 48 | . 48 . Projectiles . | . . . Explosions 48 | . 48 . Melee . | . . . Knockbacks . | . . . Impact . | . . . Kinetic . | . . . Secondary . | . . . Self-Inflicted Damage 310 | . 310 . Shots 7 | . 7 . Rammed . | . . . Targets Rammed 1 | . 1 . Kicked 1 | . 1 . Crushed . | . . . Highest Temperature 124 | 124 40 117 Average Temperature 33 | 48 12 44 Received Heat Transfer 393 | 24 126 243 Siege Activations . | . . . Martial Activations . | . . . Shielding Activations . | . . . Robots Disrupted . | . . . Combat Hostiles . | . . . Robots Corrupted . | . . . Combat Hostiles . | . . . Parts Fried . | . . . Impact Corruptions . | . . . Robots Melted . | . . . Combat Hostiles . | . . . Parts Melted 4 | . . 4 Heat Transferred 2368 | 629 . 1739 Parts Sabotaged . | . . . Parts Stolen . | . . . Parts Stripped . | . . . Power Chain Reactions . | . . . Alert | -11 -10 -10 ------- Run | Yrd Mat Min Maximum Alert Level 2 | . 2 . Low Security (%) 46 | 100 20 100 Level 1 51 | . 76 . Level 2 2 | . 3 . Level 3 . | . . . Level 4 . | . . . Level 5 . | . . . High Security . | . . . Max Security . | . . . Peak Influence 415 | 20 415 170 Initial 122 | . . 122 Average 194 | 2 256 128 Influence Increases 987 | 45 799 143 Destroy 0b10 Robot/C 340 | 20 220 100 Destroy 0b10 Robot/NC 95 | 25 55 15 Destroy Leader 86 | . 66 20 Successful Hack 26 | . 26 . Disable Machine 180 | . 180 . Destroy Structure 245 | . 237 8 Partial Spotted 15 | . 15 . Influence Decreases 932 | 45 484 403 Entered New Map 193 | . . 193 Time Decay 669 | 45 464 160 Lost Part 70 | . 20 50 Squads Dispatched 5 | . 5 . Investigation 3 | . 3 . Extermination . | . . . Reinforcement 2 | . 2 . Assault . | . . . Garrison . | . . . Intercept . | . . . Searches Triggered . | . . . Construction Impeded . | . . . Haulers Reinforced . | . . . Active Scanning Responses . | . . . Cargo Convoy Interrupts . | . . . Stealth | -11 -10 -10 --------- Run | Yrd Mat Min Distress Signals . | . . . Communications Jammed . | . . . Distress Signals . | . . . Times Spotted 26 | 1 19 6 Peak Tracking Total 3 | 1 3 2 Tactical Retreats . | . . . Traps | -11 -10 -10 ------- Run | Yrd Mat Min Traps Triggered 1 | . 1 . Indirectly . | . . . Trap Hack Attempts . | . . . Triggered . | . . . Disarmed . | . . . Reprogrammed . | . . . Reused . | . . . Traps Extracted . | . . . Installed . | . . . Triggered . | . . . Machines | -11 -10 -10 ---------- Run | Yrd Mat Min Machines Disabled 12 | . 12 . Max in Single Turn 3 | . 3 . Machines Repaired . | . . . Machines Dismantled . | . . . Machines Sabotaged . | . . . Overloaded Fab Kills . | . . . Hacking | -11 -10 -10 --------- Run | Yrd Mat Min Machines Accessed 7 | . 7 . Terminals 4 | . 4 . Fabricators . | . . . Repair Stations 1 | . 1 . Recycling Units 2 | . 2 . Scanalyzers . | . . . Garrison Access . | . . . Total Hacks 25 | . 25 . Successful 16 | . 16 . Failed 9 | . 9 . Catastrophic 3 | . 3 . Database Lockouts . | . . . Manual 1 | . 1 . Terminals 17 | . 17 . Fabricators . | . . . Repair Stations 2 | . 2 . Recycling Units 6 | . 6 . Scanalyzers . | . . . Garrison Access . | . . . Terminal Hacks 11 | . 11 . Record 4 | . 4 . Alert Level 1 | . 1 . Dispatch Records 1 | . 1 . Surveillance Status 1 | . 1 . Recall Investigation 1 | . 1 . Hauler Manifests 2 | . 2 . Zone Layout 1 | . 1 . Fabricator Hacks . | . . . Repair Station Hacks 2 | . 2 . Scan Component 1 | . 1 . Repair 1 | . 1 . Recycling Unit Hacks 3 | . 3 . Process 1 | . 1 . Retrieve Components 2 | . 2 . Scanalyzer . | . . . Garrison Access Hacks . | . . . Unauthorized Hacks . | . . . Terminals . | . . . Fabricators . | . . . Repair Stations . | . . . Recycling Units . | . . . Scanalyzers . | . . . Garrison Access . | . . . Data Cores Recovered . | . . . Used . | . . . Hacking Detections 6 | . 6 . Full Trace Events 4 | . 4 . Feedback Events . | . . . Feedback Blocked . | . . . Robot Schematics Acquired . | . . . Robots Built . | . . . Authchips . | . . . Time . | . . . Total Robot Build Rating . | . . . Part Schematics Acquired . | . . . Parts Built . | . . . Authchips . | . . . Time . | . . . Total Part Build Rating . | . . . Parts Repaired 1 | . 1 . Time 26 | . 26 . Parts Recycled . | . . . Recycled Matter 107 | . 107 . Retrieved Matter . | . . . Retrieved Components 2 | . 2 . Parts Scanalyzed . | . . . Part Schematics Acquired . | . . . Parts Damaged . | . . . Bothacking | -11 -10 -10 ------------ Run | Yrd Mat Min Used RIF Installer . | . . . Robots Hacked . | . . . Non-combat . | . . . Combat . | . . . Robot Hacks Applied . | . . . Relay Couplers Released . | . . . Fabnet Peak Effective % . | . . . Robots Rewired . | . . . Allies Hacked . | . . . Hacks Repelled . | . . . Allies | -11 -10 -10 -------- Run | Yrd Mat Min Total Allies . | . . . Largest Group . | . . . Highest-Rated Group . | . . . Highest-Rated Ally . | . . . Total Orders . | . . . Ally Attacks . | . . . Total Damage . | . . . Kills . | . . . Allies Corrupted . | . . . Allies Melted . | . . . Intel | -11 -10 -10 ------- Run | Yrd Mat Min Active Infowar (turns) 1714 | 146 1422 146 Terrain 1714 | 146 1422 146 ECM 262 | . 262 . Robot Analysis Total . | . . . Derelict Logs Recovered . | . . . Drone Launches . | . . . Drone Recoveries . | . . . Exploration | -11 -10 -10 ------------- Run | Yrd Mat Min Turns Passed 2101 | 350 1422 329 Spaces Moved 1395 | 238 1024 133 Core 17 | 17 . . Treads . | . . . Legs 1378 | 221 1024 133 Wheels . | . . . Hover . | . . . Flight . | . . . Fastest Speed 50 | 50 120 120 Average Speed 119 | 115 120 120 Slowest Speed 120 | 120 120 120 Overloaded Moves . | . . . Propulsion Burnouts . | . . . Robots Hopped . | . . . Potential Cave-ins . | . . . Cave-ins Triggered . | . . . Exploration Rate (%) 42 | 6 96 24 Regions Visited 2 Branch Regions 1 Pre-discovered Areas . | . . . Known Exits Taken 1 | . 1 . Unknown Exits Taken 1 | 1 . . Scrap Searched . | . . . Spaces Dug 5 | . 5 . Terrain Destroyed 288 | . 275 13 Melee . | . . . Projectile . | . . . AOE 288 | . 275 13 Terrain Rammed . | . . . Walls Destroyed . | . . . Machines Disabled . | . . . Actions | -11 -10 -10 --------- Run | Yrd Mat Min Total 1634 | 291 1131 212 Wait 38 | . 25 13 Move 1393 | 237 1023 133 Hop . | . . . Pick Up 29 | 18 10 1 Fast Attach . | . . . Attach 15 | 8 4 3 Detach . | . . . Swap 13 | 2 9 2 Drop 13 | 6 7 . Fire 132 | 20 52 60 Melee . | . . . Ram . | . . . Kick 1 | . 1 . Crush . | . . . Escape Stasis . | . . . Rewire . | . . . Trap . | . . . Miscellaneous . | . . . Route ------- -11/Scrapyard -10/Materials (discovered 5 exits: *Mat x3 / *Min x2) -10/Mines History --------- Turn | Location | Event 2 | -11/Scrapyard | Met Revision 17 101 | -11/Scrapyard | Discovered new exit (range 8) 351 | -11/Scrapyard | Entered Materials 352 | -10/Materials | Build established: Scavenger-Mutant 523 | -10/Materials | Repaired Lgt. Assault Rifle? 638 | -10/Materials | Discovered new exit (range 13) 868 | -10/Materials | Discovered new exit (range 10) 1053 | -10/Materials | Build established: Mutant 1151 | -10/Materials | Discovered new exit (range 5) 1200 | -10/Materials | Discovered new exit (range 4) 1326 | -10/Materials | Discovered new exit (range 13) 1521 | -10/Materials | Identified exit to Materials 1578 | -10/Materials | Identified exit to Mines 1773 | -10/Materials | Entered Mines 1787 | -10/Mines | Core integrity fell below 50% 1929 | -10/Mines | Core integrity fell below 20% 2102 | -10/Mines | Destroyed by G-47 Trooper with Particle Gun Last Messages --------------- R-06 Scavenger collects Ion Engine. R-06 Scavenger suffers critical hit (Burn). Tractor Beam melted. R-06 Scavenger destroyed. Want a larger map view with more modal windows? Or have a large enough display to fit a bigger map in exchange for smaller text? Consider selecting a different UI Layout in the option menu. Acquired 20 matter. K-01 Serf collects debris. G-47 Trooper heat short circuits Aluminum Leg. G-47 Trooper suffers critical hit (Burn). Melted Broken Aluminum Leg. G-47 Trooper overheating. Aluminum Leg destroyed. G-47 Trooper suffers critical hit (Burn). Med. Laser destroyed. Critical hit (Burn: +37). [Achievement: First Step to Greatness] Map ----- +----------------------------------------------------+ | | | | | | | | | | | | | | | | | | | | | | | | | ?????????????????????????????????????????????? | | ?????????????????????????????????????????????? | | ?????????????????????????????????????????????? | | ?????????????????????????????????????????????? | | ?????????????????????????????????????????????? | | ?????????????????????????????????????????????? | | ?????????????????????????????????????????????? | | ?????????????????????????????????????????????? | | ?????????????????????????????????????????????? | | ?????????????????????????????????????????????? | | ????????????????????###########??????????????? | | ????????????????????# g "???????? | | ????????????????????#g#########??????????????? | | ????????????????????#@#??????????????????????? | | ?????????????????#### #??????????????????????? | | ?????????????????# #????????????????????#?? | | ?????????????????# ########?????????? ???????? | | ?????????????????# #??## ##??????????"??????? | | ?????????????????# #?## ##????????????????? | | ??????????######## ### #????????????????# | | ??????????# # #????????????????# | | ?????????# ## #?????#?????????## | | ????????# ### ### ##????????######## | | ???????# ??# #?# ###?????????# | | ?????# ???# #?# ##????#?????# | | ????? ###????# ### #########??## ###### | | ????? ????????# ##?## ##?#?# | | ?????# ?????????# * #### #????# | | ?????? ???????????########### %= % #?#### | | ????????????????????????????##* % ### | | ?????????????????????????????# ######## | | ?????????????????????????????# #?????# | | ????????????????????????????# #????## | | ????????????????????????????# ???#### | | ????????????????????????????## ### ?????? | | ?????????????????????????????####??# ???? | | ???????????????????????????????????? ??? | | ????????????????????????????????????# ??? | +----------------------------------------------------+ Best States ------------- Heat Dissipation 35 Energy Generation 10 Energy Capacity 250 Matter Stores 350 Matter Capacity 350 Sight Range 16 Terrain Scan Range 16 Terrain Scan Density 10 ECM Strength 1 Evasion (%) 55 Item Schematics ----------------- None Robot Schematics ------------------ None Fabricated ------------ Nothing Repaired ---------- Lgt. Assault Rifle | 51% | -10/Materials Alien Tech Used ----------------- None Achievements -------------- Crack Shot First Step to Greatness One Hack Too Far Part-time Mechanic Remodeling Shopping List Storm Trooper Uninvited Guest Challenges ------------ None Game ------ Seed RapidSapperWheel Manual? 0 Play Time 00:51:37 Cumulative 0.8 hours Start 2025.08.17 @ 14:57:05 End 2025.08.17 @ 17:03:26 Sessions 1 Manual Loads 0 Difficulty Rogue Special Mode None Game No. 1 Rogue 1 Adventurer 0 Explorer 0 Win Type - Total 0 Types 0/0/0/0/0/0/0/0/0/0 Lore% 0 Gallery% 0 Achievement% 3 Wizard Run 0 Options --------- Layout 1 ASCII 0 Keyboard 0 Movement Numpad Keybinds 0 Fullscreen 1 Font 24/X11 Map View 50x35 Zoom Use 0% Tactical HUD 0 Map Filters NONE Filters NONE Steam 1 RUN: 02cdf353-d55b-4c65-8633-89bfc83ac7fd